bitfinex/quotes_BTCUSD_20240717
["timestamp","ask_amount","ask_price","bid_price","bid_amount"]
[1721218010858,0.02435222,64684.0,64683.0,0.1003]
[1721218011089,0.02435222,64684.0,64683.0,0.17747479]
[1721218011090,0.463792,64684.0,64683.0,0.17747479]
[1721218011215,0.477792,64684.0,64683.0,0.17747479]
[1721218011417,0.0383199,64684.0,64683.0,0.17747479]
[1721218011618,0.1789169,64684.0,64683.0,0.17747479]
[1721218011878,0.4741119,64684.0,64683.0,0.17747479]
[1721218012051,0.5011119,64684.0,64683.0,0.17747479]
[1721218012456,0.1789169,64684.0,64683.0,0.17747479]
[1721218012635,0.1889169,64684.0,64683.0,0.17747479]
[1721218013015,0.1789169,64684.0,64683.0,0.17747479]
[1721218013222,0.0243199,64684.0,64683.0,0.17747479]
[1721218013403,0.1649169,64684.0,64683.0,0.17747479]
[1721218013604,0.4741119,64684.0,64683.0,0.17747479]
[1721218013806,0.4761119,64684.0,64683.0,0.17747479]
[1721218014212,0.7833069,64684.0,64683.0,0.17747479]
[1721218014367,1.0925019,64684.0,64683.0,0.025]
[1721218014570,1.0935019,64684.0,64683.0,0.025]
[1721218015112,1.0925019,64684.0,64683.0,0.025]
[1721218015536,1.0945019,64684.0,64683.0,0.025]
[1721218015932,0.7853069,64684.0,64683.0,0.025]
[1721218016332,0.7913069,64684.0,64683.0,0.025]
[1721218016769,1.0985019,64684.0,64683.0,0.025]
[1721218016939,0.7983069,64684.0,64683.0,0.025]
[1721218017170,1.1075019,64684.0,64683.0,0.025]
[1721218017761,1.1015019,64684.0,64683.0,0.025]
[1721218018260,1.0925019,64684.0,64683.0,0.025]
[1721218018470,1.1005019,64684.0,64683.0,0.025]
[1721218018640,1.1065019,64684.0,64683.0,0.025]
[1721218019017,1.1005019,64684.0,64683.0,0.025]
[1721218019231,1.1065019,64684.0,64683.0,0.025]
[1721218019779,1.0985019,64684.0,64683.0,0.025]
[1721218020626,1.1075019,64684.0,64683.0,0.025]
[1721218021634,0.7983069,64684.0,64683.0,0.025]
[1721218022409,1.1075019,64684.0,64683.0,0.025]
[1721218023392,1.1075019,64684.0,64683.0,0.025924]
[1721218023595,0.7983069,64684.0,64683.0,0.025924]
[1721218024000,1.1075019,64684.0,64683.0,0.025924]
[1721218024440,1.83557864,64684.0,64683.0,0.025924]
[1721218024871,1.38488364,64684.0,64683.0,0.025924]
[1721218025070,1.69407864,64684.0,64683.0,0.025924]
[1721218025905,1.38488364,64684.0,64683.0,0.025924]
[1721218026392,1.69407864,64684.0,64683.0,0.025924]
[1721218027015,1.77693558,64684.0,64683.0,0.025924]
[1721218027214,1.69407864,64684.0,64683.0,0.025924]
[1721218027539,1.89842821,64684.0,64683.0,0.025924]
[1721218027745,1.92204629,64684.0,64683.0,0.025924]
[1721218027943,1.98604629,64684.0,64683.0,0.025924]
[1721218028147,1.98004629,64684.0,64683.0,0.025924]
[1721218028571,1.94304629,64684.0,64683.0,0.025924]
[1721218028806,2.02591295,64684.0,64683.0,0.025924]
[1721218028980,1.97591295,64684.0,64683.0,0.025924]
[1721218029198,1.94404629,64684.0,64683.0,0.025924]
[1721218029430,1.88561959,64684.0,64683.0,0.025924]
[1721218029551,1.88575427,64684.0,64683.0,0.025924]
[1721218029754,1.83575427,64684.0,64683.0,0.025924]
[1721218029973,1.77591884,64684.0,64683.0,0.025924]
[1721218030395,1.91491884,64684.0,64683.0,0.025924]
[1721218030616,2.01926841,64684.0,64683.0,0.025924]
[1721218030821,1.83576161,64684.0,64683.0,0.025924]
[1721218031084,1.76572746,64684.0,64683.0,0.025924]
[1721218032212,1.2788019,64684.0,64683.0,0.025924]
[1721218032427,1.2205019,64684.0,64683.0,0.025924]
[1721218034274,1.278766,64684.0,64683.0,0.025924]
[1721218034673,1.2205019,64684.0,64683.0,0.025924]
[1721218035069,1.2305019,64684.0,64683.0,0.025924]
[1721218035276,0.9213069,64684.0,64683.0,0.025924]
[1721218035798,1.2305019,64684.0,64683.0,0.025924]
[1721218036004,1.2165019,64684.0,64683.0,0.025924]
[1721218036257,1.1165019,64684.0,64683.0,0.025924]
[1721218036484,1.10719958,64684.0,64683.0,0.025924]
[1721218036690,1.12076897,64684.0,64683.0,0.025924]
[1721218044243,1.12076897,64684.0,64683.0,0.317624]
[1721218044244,0.03858697,64684.0,64683.0,0.317624]
[1721218044502,0.03858697,64684.0,64683.0,0.163024]
[1721218044761,0.027,64684.0,64683.0,0.163024]
[1721218044978,0.03456542,64684.0,64683.0,0.24019879]
[1721218045445,0.03456542,64684.0,64683.0,0.39479879]
[1721218045446,0.02756542,64684.0,64683.0,0.39479879]
[1721218045939,0.021,64684.0,64683.0,0.39579879]
[1721218046618,0.01,64684.0,64683.0,0.39479879]
[1721218046867,0.00861683,64684.0,64683.0,0.39479879]
[1721218047042,0.002,64684.0,64683.0,0.39579879]
[1721218047439,0.001,64684.0,64683.0,0.39579879]
[1721218047868,0.001,64684.0,64683.0,1.01419879]
[1721218048302,0.001,64684.0,64683.0,1.47778053]
[1721218048457,0.001,64684.0,64683.0,0.70548053]
[1721218048637,0.001,64684.0,64683.0,1.29765591]
[1721218048839,0.002,64684.0,64683.0,1.29965591]
[1721218049222,0.003634,64696.0,64683.0,1.29965591]
[1721218049223,0.00084,64696.0,64695.0,0.772855]
[1721218049469,0.00084,64696.0,64695.0,1.14321153]
[1721218051089,0.00084,64696.0,64695.0,0.83406953]
[1721218051326,0.00184,64696.0,64695.0,0.83406953]
[1721218051661,0.00184,64696.0,64695.0,1.14321153]
[1721218052582,0.00184,64696.0,64695.0,0.83606953]
[1721218052767,0.00184,64696.0,64695.0,0.1388]
[1721218052768,0.465547,64696.0,64695.0,0.1388]
[1721218053195,0.775685,64696.0,64695.0,0.1408]
[1721218053508,0.156409,64696.0,64695.0,0.1408]
[1721218053737,0.00184,64696.0,64695.0,0.1408]
[1721218053939,0.156409,64696.0,64695.0,0.1408]
[1721218054338,0.465547,64696.0,64695.0,0.1408]
[1721218054545,0.156409,64696.0,64695.0,0.1408]
[1721218054771,0.464547,64696.0,64695.0,0.1388]
[1721218055169,0.464547,64696.0,64695.0,0.1408]
[1721218055170,0.465547,64696.0,64695.0,0.1408]
[1721218055573,0.00184,64696.0,64695.0,0.1408]
[1721218057650,0.00184,64696.0,64695.0,1.06803674]
[1721218061422,0.00184,64696.0,64695.0,1.42717874]
[1721218061648,0.00184,64696.0,64695.0,1.55551686]
[1721218061905,0.00184,64696.0,64695.0,1.86465886]
[1721218062075,0.00184,64696.0,64695.0,1.96465886]
[1721218062839,0.00184,64696.0,64695.0,1.91465886]
[1721218063039,0.00084,64696.0,64695.0,1.96265886]
[1721218063246,0.00084,64696.0,64695.0,1.96465886]
[1721218063247,0.00184,64696.0,64695.0,1.96465886]
[1721218063650,0.00284,64696.0,64695.0,1.96765886]
[1721218064117,0.00184,64696.0,64695.0,1.96465886]
[1721218064991,0.00284,64696.0,64695.0,1.96765886]
[1721218065190,0.00284,64696.0,64695.0,2.18825886]
[1721218065439,0.00284,64696.0,64695.0,2.16325886]
[1721218065643,0.002794,64718.0,64716.0,0.15452]
[1721218065846,0.002794,64718.0,64717.0,0.0626]
[1721218066059,0.002794,64718.0,64717.0,0.68053674]
[1721218066219,0.002794,64724.0,64719.0,0.309026]
[1721218066542,0.154502,64724.0,64719.0,0.154512]
[1721218066753,0.002794,64723.0,64720.0,0.154511]
[1721218066901,0.157297,64724.0,64719.0,0.154513]
[1721218067533,0.154503,64724.0,64719.0,0.154513]
[1721218067708,0.155503,64724.0,64719.0,0.161513]
[1721218067910,0.155503,64724.0,64719.0,0.163513]
[1721218068698,0.001,64724.0,64720.0,0.154511]
[1721218068925,0.001,64724.0,64723.0,0.154504]
[1721218069130,0.001,64724.0,64723.0,0.46660282]
[1721218069375,0.001,64724.0,64719.0,0.009]
[1721218069630,0.001,64724.0,64723.0,0.154504]
[1721218070184,0.154493,64728.0,64723.0,0.154504]
[1721218070392,0.154495,64727.0,64722.0,0.154506]
[1721218070593,0.4771,64733.0,64720.0,0.004]
[1721218070594,0.154509,64721.0,64720.0,0.004]
[1721218070895,0.772545,64721.0,64720.0,0.002]
[1721218071009,0.154509,64721.0,64720.0,0.002]
[1721218071365,0.463527,64721.0,64720.0,0.002]
[1721218071976,0.463527,64721.0,64720.0,0.004]
[1721218072190,0.463527,64721.0,64720.0,0.002]
[1721218073312,0.154513,64720.0,64715.0,0.154523]
[1721218073520,0.154514,64719.0,64715.0,0.15438174]
[1721218073895,0.309026,64720.0,64715.0,0.15438174]
[1721218074100,0.154517,64718.0,64717.0,0.07717479]
[1721218075950,0.154514,64719.0,64717.0,0.07717479]
[1721218076657,0.154514,64719.0,64717.0,0.08417479]
[1721218077003,0.154514,64719.0,64717.0,0.07717479]
[1721218077254,0.154514,64719.0,64717.0,0.08217479]
[1721218077456,0.154516,64718.0,64717.0,0.005]
[1721218077691,0.463549,64718.0,64717.0,0.005]
[1721218077896,1.081615,64718.0,64717.0,0.005]
[1721218078101,1.222815,64718.0,64717.0,0.005]
[1721218078302,1.531848,64718.0,64717.0,0.005]
[1721218078504,1.53892555,64718.0,64717.0,0.005]
[1721218079344,1.71630729,64718.0,64717.0,0.004]
[1721218079748,1.71630729,64718.0,64717.0,0.006]
[1721218079961,1.71630729,64718.0,64717.0,0.002]
[1721218079962,1.53892555,64718.0,64717.0,0.002]
[1721218080178,1.53892555,64718.0,64700.0,0.20473279]
[1721218080179,0.154548,64705.0,64700.0,0.20473279]
[1721218080301,0.002794,64717.0,64700.0,0.05017479]
[1721218080682,0.154554,64702.0,64700.0,0.05017479]
[1721218080850,0.309092,64706.0,64700.0,0.05017479]
[1721218080851,0.772785,64701.0,64700.0,0.05017479]
[1721218081037,0.77969391,64701.0,64700.0,0.05017479]
[1721218081447,0.77969391,64701.0,64700.0,0.05117479]
[1721218081647,0.47057991,64701.0,64700.0,0.001]
[1721218081847,0.47057991,64701.0,64693.0,0.13907979]
[1721218081848,0.463713,64695.0,64694.0,0.0625]
[1721218082051,0.154573,64694.0,64693.0,0.07717479]
[1721218082253,0.16147354,64695.0,64693.0,0.07717479]
[1721218082447,0.16146912,64694.0,64693.0,0.07717479]
[1721218082628,0.00689612,64694.0,64693.0,0.07717479]
[1721218083010,0.154571,64695.0,64693.0,0.07717479]
[1721218083224,0.00689612,64694.0,64693.0,0.07717479]
[1721218083449,0.00689612,64694.0,64693.0,0.69528453]
[1721218083647,0.463669,64702.0,64693.0,0.55070853]
[1721218083848,0.309084,64708.0,64703.0,0.0636]
[1721218084069,0.002794,64707.0,64703.0,0.22107261]
[1721218084273,0.0774,64720.0,64710.0,0.154534]
[1721218084274,0.154522,64716.0,64710.0,0.154534]
[1721218084616,0.154519,64717.0,64714.0,0.1443]
[1721218084866,0.154522,64716.0,64714.0,0.1443]
[1721218085036,0.002794,64715.0,64714.0,0.1443]
[1721218085260,0.309014,64722.0,64714.0,0.1443]
[1721218085261,0.309019,64721.0,64714.0,0.1443]
[1721218085467,0.154517,64718.0,64714.0,0.1443]
[1721218085745,0.308987,64728.0,64719.0,0.309025]
[1721218085969,0.002794,64730.0,64714.0,0.1443]
[1721218086097,0.154511,64721.0,64715.0,0.30890374]
[1721218086299,0.154511,64721.0,64716.0,0.154521]
[1721218086499,0.154511,64721.0,64716.0,0.30890274]
[1721218087115,0.309002,64725.0,64719.0,0.001]
[1721218087315,0.1545,64725.0,64719.0,0.001]
[1721218087513,0.308967,64732.0,64724.0,0.154501]
[1721218087514,0.154488,64730.0,64724.0,0.154501]
[1721218087706,0.15449,64729.0,64723.0,0.154504]
[1721218087899,0.002794,64728.0,64723.0,0.30888574]
[1721218088196,0.002794,64728.0,64723.0,0.15438174]
[1721218088407,0.30898,64729.0,64721.0,0.0829]
[1721218088408,0.154506,64722.0,64721.0,0.0829]
[1721218088578,0.30897,64731.0,64724.0,0.154501]
[1721218088782,0.30897,64731.0,64721.0,0.23728174]
[1721218088783,0.154493,64728.0,64723.0,0.154503]
[1721218088986,0.0759,64734.0,64725.0,0.154499]
[1721218088987,0.308966,64732.0,64725.0,0.154499]
[1721218089140,0.15449,64729.0,64724.0,0.07717479]
[1721218089341,0.15449,64729.0,64724.0,0.23167679]
[1721218089564,0.15449,64729.0,64724.0,0.154502]
[1721218089806,0.15533,64729.0,64724.0,0.154502]
[1721218090004,0.00084,64729.0,64725.0,0.154498]
[1721218090564,0.00284,64729.0,64728.0,0.607277]
[1721218090754,0.00284,64729.0,64728.0,1.07064374]
[1721218091155,0.00084,64729.0,64728.0,1.07064374]
[1721218091272,0.00084,64729.0,64728.0,0.1438]
[1721218091480,0.46431,64729.0,64728.0,0.0615]
[1721218091675,0.15533,64729.0,64728.0,0.0615]
[1721218092505,0.15733,64729.0,64728.0,0.0615]
[1721218092909,0.15533,64729.0,64728.0,0.0615]
[1721218093135,0.00084,64729.0,64728.0,0.0615]
[1721218093336,0.15533,64729.0,64728.0,0.0775]
[1721218093557,0.00084,64729.0,64728.0,0.0775]
[1721218093763,0.00084,64729.0,64728.0,0.0645]
[1721218094160,0.00084,64729.0,64728.0,0.37937374]
[1721218094421,0.00084,64729.0,64728.0,0.37037374]
[1721218094605,0.00084,64729.0,64728.0,1.57842874]
[1721218094854,0.00084,64729.0,64728.0,1.71270836]
[1721218095140,0.00084,64729.0,64728.0,2.20818816]
[1721218095350,0.00084,64736.0,64728.0,2.20818816]
[1721218095351,0.00084,64736.0,64735.0,1.120077]
[1721218095554,0.00084,64736.0,64735.0,1.71167802]
[1721218096045,0.00084,64736.0,64735.0,1.86167802]
[1721218096214,0.00084,64736.0,64735.0,2.17062902]
[1721218096631,0.002794,64754.0,64748.0,0.772222]
[1721218096837,0.46584271,64754.0,64748.0,1.14147853]
[1721218097184,0.00836,64761.0,64748.0,1.45036753]
[1721218098107,0.00836,64761.0,64748.0,1.37319274]
[1721218098323,0.011154,64761.0,64748.0,1.37319274]
[1721218098923,0.00836,64761.0,64748.0,1.37319274]
[1721218099114,0.00836,64761.0,64748.0,1.42319274]
[1721218099323,0.00836,64761.0,64748.0,1.61036753]
[1721218099757,0.00836,64761.0,64748.0,1.56436753]
[1721218099991,0.00836,64761.0,64748.0,1.16430374]
[1721218100194,0.154418,64760.0,64748.0,1.17630374]
[1721218100422,0.00836,64761.0,64748.0,0.78141474]
[1721218100623,0.154421,64758.0,64748.0,1.07830374]
[1721218100820,0.002794,64757.0,64748.0,1.06430374]
[1721218100996,0.002794,64758.0,64748.0,1.06430374]
[1721218101220,0.002794,64758.0,64748.0,1.07830374]
[1721218101399,0.157215,64758.0,64748.0,1.07830374]
[1721218101617,0.002794,64757.0,64748.0,1.06430374]
[1721218101814,0.002794,64758.0,64748.0,1.06430374]
[1721218102233,0.002794,64758.0,64748.0,1.07830374]
[1721218102779,0.011154,64759.0,64748.0,1.07830374]
[1721218102947,0.011154,64759.0,64748.0,1.38719274]
[1721218103157,0.00836,64759.0,64748.0,1.40119274]
[1721218103314,0.00836,64759.0,64748.0,1.40019274]
[1721218103522,0.00836,64759.0,64748.0,1.09130374]
[1721218103760,0.00836,64759.0,64748.0,1.07830374]
[1721218103965,0.00836,64759.0,64748.0,1.37319274]
[1721218104112,0.00836,64759.0,64748.0,1.38719274]
[1721218104322,0.00836,64759.0,64748.0,1.40119274]
[1721218104529,0.00836,64759.0,64748.0,1.38719274]
[1721218104738,0.00836,64759.0,64748.0,1.94608174]
[1721218104939,0.00836,64759.0,64748.0,2.04608174]
[1721218105394,0.00836,64759.0,64748.0,2.03208174]
[1721218105593,0.00836,64759.0,64748.0,2.19730148]
[1721218105811,0.00836,64759.0,64748.0,2.25122997]
[1721218106210,0.00836,64759.0,64748.0,2.23722997]
[1721218106350,0.00836,64759.0,64748.0,2.2744139]
[1721218106558,0.00836,64759.0,64748.0,2.28840521]
[1721218106751,0.00836,64759.0,64748.0,2.16019416]
[1721218107012,0.00836,64759.0,64748.0,2.15036895]
[1721218107212,0.00836,64759.0,64748.0,2.12325653]
[1721218107538,0.00836,64759.0,64748.0,2.06008174]
[1721218107692,0.00836,64759.0,64748.0,2.01008174]
[1721218107892,0.00836,64759.0,64748.0,1.7984525]
[1721218108135,0.00836,64759.0,64748.0,1.55573674]
[1721218108862,0.00836,64759.0,64748.0,1.63291153]
[1721218109073,0.00836,64759.0,64748.0,1.68291153]
[1721218109209,0.00836,64759.0,64748.0,1.55573674]
[1721218109638,0.00836,64759.0,64748.0,1.63291153]
[1721218109802,0.00836,64759.0,64748.0,1.55573674]
[1721218110474,1e-08,64749.0,64748.0,1.55573674]
[1721218112367,1e-08,64749.0,64748.0,1.68291153]
[1721218113757,1e-08,64749.0,64748.0,1.63291153]
[1721218114154,1e-08,64749.0,64748.0,1.76113256]
[1721218114983,1e-08,64749.0,64748.0,1.04684774]
[1721218116956,1e-08,64749.0,64748.0,0.60025874]
[1721218117325,1e-08,64749.0,64748.0,0.98632253]
[1721218118735,1e-08,64749.0,64748.0,1.04632253]
[1721218118937,1e-08,64749.0,64748.0,1.35521153]
[1721218119140,1.00000001,64749.0,64748.0,1.43191153]
[1721218119363,1.00000001,64749.0,64748.0,1.45691153]
[1721218119565,1.00000001,64749.0,64748.0,1.50691153]
[1721218119766,1.00000001,64749.0,64748.0,1.63514604]
[1721218120178,1.00000001,64749.0,64748.0,1.63513533]
[1721218120687,1.00000001,64749.0,64748.0,2.14402433]
[1721218120849,1.00000001,64749.0,64748.0,1.83513533]
[1721218121056,0.00836,64789.0,64755.0,0.2]
[1721218121256,0.06118159,64820.0,64805.0,0.0401]
[1721218121475,0.0942892,64859.0,64836.0,0.50847]
[1721218121701,0.0942892,64859.0,64836.0,1.279645]
[1721218121951,0.0942892,64859.0,64836.0,0.59077493]
[1721218122182,0.0942892,64859.0,64820.0,0.14611427]
[1721218122183,0.0785,64845.0,64830.0,0.2]
[1721218122389,0.0785,64845.0,64835.0,0.03]
[1721218122623,0.0785,64845.0,64836.0,0.92555674]
[1721218122843,0.0628,64853.0,64836.0,1.23402674]
[1721218123040,0.0628,64853.0,64836.0,0.93955674]
[1721218123246,0.0628,64853.0,64845.0,0.2]
[1721218123451,0.0628,64853.0,64846.0,0.15438174]
[1721218125162,0.0628,64853.0,64846.0,0.30859174]
[1721218125547,0.0628,64853.0,64847.0,0.154209]
[1721218125711,0.0628,64853.0,64848.0,0.15438174]
[1721218125908,0.0785,64854.0,64852.0,0.2]
[1721218126114,0.0147892,64859.0,64852.0,0.2]
[1721218126115,0.0147892,64859.0,64853.0,0.15438174]
[1721218126572,0.0147892,64859.0,64854.0,0.154191]
[1721218126774,0.0147892,64859.0,64852.0,0.2]
[1721218126775,0.0147892,64859.0,64855.0,0.15438174]
[1721218128369,0.0147892,64859.0,64855.0,0.15938174]
[1721218128853,0.0147892,64859.0,64855.0,0.005]
[1721218128854,0.154187,64856.0,64855.0,0.005]
[1721218129130,0.852337,64856.0,64855.0,0.005]
[1721218129270,1.52899374,64856.0,64855.0,0.005]
[1721218129477,1.47899374,64856.0,64855.0,0.005]
[1721218130019,1.47899374,64856.0,64855.0,0.006]
[1721218130207,0.154225,64841.0,64836.0,0.002794]
[1721218130607,0.154225,64841.0,64835.0,0.002794]
[1721218130813,0.154225,64841.0,64835.0,0.07996879]
[1721218131011,0.154226,64840.0,64835.0,0.07996879]
[1721218131416,0.15438174,64855.0,64835.0,0.07996879]
[1721218131417,0.308387,64854.0,64835.0,0.07996879]
[1721218131620,0.154229,64839.0,64835.0,0.07996879]
[1721218131818,0.154229,64839.0,64836.0,0.014]
[1721218132025,0.308439,64843.0,64837.0,0.002794]
[1721218132026,0.154231,64838.0,64837.0,0.002794]
[1721218132431,0.1453,64856.0,64846.0,0.2]
[1721218132664,0.1453,64856.0,64849.0,0.23137679]
[1721218132665,0.453677,64856.0,64849.0,0.23137679]
[1721218132821,0.453677,64856.0,64850.0,0.15746542]
[1721218132822,0.0814,64856.0,64850.0,0.15746542]
[1721218133023,0.0147892,64859.0,64854.0,0.15419]
[1721218133243,0.0653,64862.0,64858.0,0.154182]
[1721218133445,0.0759,64865.0,64859.0,0.15717574]
[1721218133728,0.0759,64865.0,64859.0,0.15438174]
[1721218133905,0.231447,64874.0,64864.0,0.07717479]
[1721218134111,0.231447,64874.0,64870.0,0.154153]
[1721218134112,0.0773,64874.0,64870.0,0.154153]
[1721218134313,0.162498,64877.0,64873.0,0.07717479]
[1721218134611,0.162498,64877.0,64874.0,0.15438174]
[1721218134612,0.00836,64877.0,64874.0,0.15438174]
[1721218134784,0.00836,64877.0,64876.0,0.15414]
[1721218135006,0.00836,64877.0,64876.0,0.30852174]
[1721218135403,0.00836,64877.0,64876.0,0.61680174]
[1721218135605,0.00836,64877.0,64876.0,0.15438174]
[1721218136630,0.00836,64877.0,64876.0,0.16838174]
[1721218136834,0.00836,64877.0,64876.0,0.32252174]
[1721218137233,0.00836,64877.0,64876.0,0.16838174]
[1721218137601,0.00836,64877.0,64876.0,0.33652174]
[1721218137975,0.00836,64877.0,64876.0,0.64480174]
[1721218138176,0.00836,64877.0,64876.0,1.34876996]
[1721218138379,0.079,64898.0,64877.0,0.770687]
[1721218138736,0.00834,64902.0,64890.0,0.354106]
[1721218138949,0.00834,64902.0,64890.0,0.91235896]
[1721218139124,0.00834,64902.0,64890.0,1.52878496]
[1721218139507,0.162419,64902.0,64890.0,1.52878496]
[1721218139731,0.162419,64902.0,64890.0,1.43312674]
[1721218139914,0.154081,64901.0,64890.0,1.43312674]
[1721218140132,0.00834,64902.0,64890.0,1.43312674]
[1721218140133,0.316497,64902.0,64890.0,1.12491374]
[1721218140341,0.316497,64902.0,64883.0,0.2]
[1721218140342,0.00834,64902.0,64883.0,0.2]
[1721218140539,0.00834,64902.0,64884.0,0.15438174]
[1721218140540,0.154118,64885.0,64884.0,0.15438174]
[1721218140738,0.462355,64885.0,64884.0,0.15438174]
[1721218141005,0.154118,64885.0,64884.0,0.15438174]
[1721218141174,0.308232,64887.0,64884.0,0.15438174]
[1721218141416,0.154118,64885.0,64884.0,0.15438174]
[1721218141623,0.308195,64894.0,64886.0,0.154115]
[1721218141833,0.308173,64899.0,64887.0,0.15746366]
[1721218142032,0.308201,64893.0,64887.0,0.15438174]
[1721218142231,0.00834,64902.0,64870.0,0.002794]
[1721218142232,0.154137,64877.0,64876.0,0.2]
[1721218142360,0.0763,64885.0,64884.0,0.014]
[1721218142562,0.538655,64885.0,64884.0,0.014]
[1721218142972,0.154121,64884.0,64877.0,0.311067]
[1721218143218,0.154123,64883.0,64878.0,0.30851674]
[1721218143619,0.154123,64884.0,64879.0,0.23130579]
[1721218143838,0.154114,64887.0,64883.0,0.2]
[1721218144046,0.154118,64885.0,64884.0,0.15438174]
[1721218144173,0.30822,64889.0,64884.0,0.15438174]
[1721218144375,0.154118,64886.0,64884.0,0.15438174]
[1721218144787,0.30822,64889.0,64884.0,0.15438174]
[1721218144788,0.308229,64887.0,64884.0,0.15438174]
[1721218144977,0.30822,64889.0,64884.0,0.15438174]
[1721218145229,0.154117,64886.0,64884.0,0.15438174]
[1721218145429,0.30822,64889.0,64884.0,0.15438174]
[1721218145680,0.0001,64891.0,64886.0,0.07717479]
[1721218146020,0.154095,64895.0,64891.0,0.154103]
[1721218146229,0.0785,64901.0,64892.0,0.30848274]
[1721218146459,0.0785,64901.0,64894.0,0.154096]
[1721218146460,0.308166,64900.0,64894.0,0.154096]
[1721218146664,0.308171,64899.0,64895.0,0.15438174]
[1721218146841,0.154092,64896.0,64895.0,0.15438174]
[1721218147126,0.154097,64894.0,64893.0,0.07717479]
[1721218147350,0.00756,64896.0,64883.0,0.2]
[1721218147557,0.00756,64896.0,64876.0,0.2]
[1721218147558,0.0601,64885.0,64876.0,0.2]
[1721218147759,0.0601,64885.0,64877.0,0.62022445]
[1721218147937,0.0601,64885.0,64877.0,0.15717574]
[1721218147938,0.308254,64882.0,64877.0,0.15717574]
[1721218148165,0.30827,64878.0,64877.0,0.15717574]
[1721218148370,0.154137,64877.0,64876.0,0.2]
[1721218148545,0.462412,64877.0,64876.0,0.2]
[1721218148746,0.154137,64877.0,64876.0,0.2]
[1721218149198,0.154137,64877.0,64872.0,0.07717479]
[1721218149199,0.0823,64882.0,64868.0,0.202794]
[1721218149308,0.462469,64869.0,64868.0,0.002794]
[1721218149513,0.0823,64882.0,64861.0,0.002794]
[1721218149514,0.308323,64867.0,64861.0,0.002794]
[1721218149733,0.154171,64863.0,64862.0,0.15438174]
[1721218150159,0.15418,64859.0,64858.0,0.002794]
[1721218150370,0.0607,64866.0,64854.0,0.002794]
[1721218150371,0.308358,64860.0,64854.0,0.002794]
[1721218150550,0.308358,64860.0,64855.0,0.15438174]
[1721218150728,0.30828,64876.0,64855.0,0.15438174]
[1721218150729,0.0823,64871.0,64860.0,0.2]
[1721218150941,0.154154,64870.0,64869.0,0.07717479]
[1721218151128,0.0823,64871.0,64869.0,0.07717479]
[1721218151332,0.308272,64878.0,64870.0,0.002794]
[1721218151558,0.1448,64879.0,64870.0,0.002794]
[1721218151559,0.1448,64879.0,64877.0,0.07717479]
[1721218151759,0.05,64906.0,64877.0,0.07717479]
[1721218151760,0.154124,64883.0,64878.0,0.30851574]
[1721218151957,0.15412,64885.0,64878.0,0.46264774]
[1721218152160,0.15412,64885.0,64879.0,0.308265]
[1721218152434,0.15412,64885.0,64877.0,0.07717479]
[1721218152435,0.154121,64884.0,64880.0,0.30851074]
[1721218152636,0.154124,64883.0,64880.0,0.15438174]
[1721218152909,0.0823,64889.0,64880.0,0.15438174]
[1721218153106,0.308203,64893.0,64884.0,0.23129479]
[1721218153314,0.154107,64890.0,64885.0,0.30849974]
[1721218153526,0.308209,64891.0,64886.0,0.154115]
[1721218153527,0.154105,64891.0,64886.0,0.154115]
[1721218153722,0.154104,64892.0,64887.0,0.30849374]
[1721218153968,0.3082,64893.0,64887.0,0.15438174]
[1721218154174,0.154111,64888.0,64887.0,0.15438174]
[1721218154349,0.15412,64885.0,64881.0,0.2]
[1721218154564,0.15412,64885.0,64882.0,0.15438174]
[1721218154775,0.00083,64889.0,64881.0,0.2]
[1721218154980,0.00083,64889.0,64881.0,0.35438174]
[1721218155187,0.154122,64884.0,64881.0,0.35438174]
[1721218155917,0.154113,64888.0,64883.0,0.154121]
[1721218156143,0.154113,64888.0,64884.0,0.15438174]
[1721218156144,0.154112,64888.0,64884.0,0.15438174]
[1721218157000,0.00083,64889.0,64884.0,0.15438174]
[1721218157001,0.154114,64887.0,64884.0,0.15438174]
[1721218157562,0.154111,64888.0,64884.0,0.30850174]
[1721218157902,0.154939,64889.0,64885.0,0.154118]
[1721218158130,0.154939,64889.0,64884.0,0.30850174]
[1721218158351,0.154939,64889.0,64888.0,1.124669]
[1721218158352,0.00083,64889.0,64888.0,1.124669]
[1721218158484,0.38725,64904.0,64888.0,1.124669]
[1721218158485,0.154089,64898.0,64888.0,0.54524772]
[1721218158702,0.154091,64897.0,64892.0,0.154101]
[1721218158905,0.154091,64897.0,64889.0,0.46259874]
[1721218158906,0.154085,64899.0,64894.0,0.154096]
[1721218159152,0.154085,64899.0,64889.0,0.308217]
[1721218159153,0.308183,64897.0,64889.0,0.308217]
[1721218159542,0.308162,64901.0,64891.0,0.308209]
[1721218159686,0.308162,64901.0,64888.0,0.2]
[1721218159687,0.154084,64900.0,64892.0,0.15438174]
[1721218159889,0.154084,64900.0,64895.0,0.154094]
[1721218160090,0.154084,64900.0,64896.0,0.15438174]
[1721218160292,0.154081,64901.0,64897.0,0.154089]
[1721218160515,0.0791,64904.0,64900.0,0.154081]
[1721218160722,0.154074,64904.0,64900.0,0.154082]
[1721218160901,0.154077,64903.0,64898.0,0.30846774]
[1721218161248,0.162418,64902.0,64898.0,0.15438174]
[1721218161452,0.00834,64902.0,64898.0,0.46255374]
[1721218161742,0.00834,64902.0,64898.0,0.30846874]
[1721218162255,0.00834,64902.0,64901.0,0.15408]
[1721218162464,0.00834,64902.0,64901.0,0.74457763]
[1721218162652,0.00834,64902.0,64901.0,0.61662274]
[1721218162856,0.00834,64902.0,64901.0,0.74456547]
[1721218163403,0.00834,64902.0,64901.0,1.05272647]
[1721218163603,0.00834,64902.0,64901.0,1.05972647]
[1721218164835,0.00834,64902.0,64901.0,1.05272647]
[1721218165211,0.308099,64915.0,64906.0,0.308133]
[1721218165522,0.308063,64922.0,64905.0,0.2]
[1721218165523,0.154045,64916.0,64911.0,0.154055]
[1721218165722,0.154047,64915.0,64912.0,0.12793009]